bitfinex-derivatives/quotes_BTCF0:USTF0_20250508
["timestamp","ask_amount","ask_price","bid_price","bid_amount"]
[1746726464498,0.41967278,101070.0,101060.0,0.95539916]
[1746726464698,0.52042568,101070.0,101060.0,0.95539916]
[1746726464900,0.52042568,101070.0,101060.0,1.37129916]
[1746726465296,0.56922568,101070.0,101060.0,1.37129916]
[1746726466405,0.37137278,101070.0,101060.0,1.37129916]
[1746726466607,0.56922568,101070.0,101060.0,1.37129916]
[1746726468309,0.61662568,101070.0,101060.0,1.37129916]
[1746726469505,0.61662568,101070.0,101060.0,0.99662666]
[1746726469707,1.14575234,101070.0,101060.0,0.4169]
[1746726469909,2.05175234,101070.0,101060.0,0.4169]
[1746726470905,2.05175234,101070.0,101060.0,0.001]
[1746726474317,2.2011997,101070.0,101060.0,0.001]
[1746726478017,2.03287304,101070.0,101060.0,0.001]
[1746726478216,2.2011997,101070.0,101060.0,0.001]
[1746726479615,2.2011997,101070.0,101060.0,0.00116207]
[1746726481518,0.1978921,101050.0,101040.0,0.00197937]
[1746726481716,1.04159154,101050.0,101040.0,0.00197937]
[1746726481916,0.65696488,101050.0,101040.0,0.00197937]
[1746726482114,0.65696488,101050.0,101040.0,0.05057937]
[1746726482314,1.01776488,101050.0,101040.0,0.05057937]
[1746726482824,2.09309154,101050.0,101040.0,0.05057937]
[1746726483024,2.29309154,101050.0,101040.0,0.01705856]
[1746726483415,2.29409154,101050.0,101040.0,0.01805856]
[1746726483920,2.39305554,101050.0,101040.0,0.01805856]
[1746726484424,2.39605554,101050.0,101040.0,6e-08]
[1746726484625,0.1979313,101030.0,101020.0,0.12778982]
[1746726484836,0.1979313,101030.0,101020.0,0.17748982]
[1746726484837,0.51250408,101030.0,101020.0,0.17748982]
[1746726485124,0.65710408,101030.0,101020.0,0.18473628]
[1746726485625,0.65710408,101030.0,101020.0,0.13503628]
[1746726485828,1.01790408,101030.0,101020.0,0.13503628]
[1746726486119,1.18623074,101030.0,101020.0,0.13503628]
[1746726486320,1.18723074,101030.0,101020.0,0.07918982]
[1746726486524,1.52723074,101030.0,101020.0,0.07918982]
[1746726486725,2.43323074,101030.0,101020.0,0.07918982]
[1746726486927,2.26490408,101030.0,101020.0,0.07918982]
[1746726487122,2.43323074,101030.0,101020.0,0.00098982]
[1746726487319,2.44123074,101030.0,101020.0,0.00098982]
[1746726487715,2.44223074,101030.0,101020.0,0.00098982]
[1746726488826,2.27390408,101030.0,101020.0,0.00098982]
[1746726489027,2.44223074,101030.0,101020.0,0.00098982]
[1746726489228,2.44723074,101030.0,101020.0,0.00098982]
[1746726489820,2.44023074,101030.0,101020.0,0.00098982]
[1746726490019,2.45123074,101030.0,101020.0,2e-08]
[1746726491922,2.28290408,101030.0,101020.0,2e-08]
[1746726492319,2.28290408,101030.0,101020.0,0.04880002]
[1746726493318,2.45123074,101030.0,101020.0,0.04880002]
[1746726495227,2.45123074,101030.0,101020.0,2e-08]
[1746726500031,2.28290408,101030.0,101020.0,0.04860002]
[1746726500234,2.45123074,101030.0,101020.0,0.04860002]
[1746726503134,2.52935074,101030.0,101020.0,0.04860002]
[1746726503335,2.52935074,101030.0,101020.0,2e-08]
[1746726504438,2.62833474,101030.0,101020.0,2e-08]
[1746726506840,0.1979508,101020.0,101010.0,0.00197995]
[1746726507142,1.52145024,101020.0,101010.0,0.00197995]
[1746726507731,2.42745024,101020.0,101010.0,0.00197995]
[1746726508040,2.43645024,101020.0,101010.0,0.00197995]
[1746726508240,2.43645024,101020.0,101010.0,0.05077995]
[1746726508439,2.26812358,101020.0,101010.0,0.05077995]
[1746726508626,2.26812358,101020.0,101010.0,0.10187995]
[1746726508627,2.43645024,101020.0,101010.0,0.10187995]
[1746726508832,1.88812358,101020.0,101010.0,0.14857995]
[1746726509135,1.89412358,101020.0,101010.0,0.16405741]
[1746726509845,1.4797508,101020.0,101010.0,0.33238407]
[1746726510034,1.4817508,101020.0,101010.0,0.16405741]
[1746726510340,1.65007746,101020.0,101010.0,0.16405741]
[1746726510536,1.74647746,101020.0,101010.0,0.16405741]
[1746726510745,1.83647746,101020.0,101010.0,0.16405741]
[1746726511042,2.42305024,101020.0,101010.0,0.16205741]
[1746726511229,2.10847746,101020.0,101010.0,0.06425741]
[1746726511433,0.1979704,101010.0,101000.0,0.15945082]
[1746726511637,1.59636984,101010.0,101000.0,0.15945082]
[1746726511840,1.7646965,101010.0,101000.0,0.10099006]
[1746726512045,1.86370051,101010.0,101000.0,0.10099006]
[1746726512544,1.86370051,101010.0,100980.0,0.12970054]
[1746726512545,0.1980097,100990.0,100980.0,0.00198054]
[1746726512737,1.79250914,100990.0,100980.0,0.00198054]
[1746726512939,1.93980914,100990.0,100980.0,0.00198054]
[1746726513738,1.77148248,100990.0,100980.0,0.00198054]
[1746726513942,1.93980914,100990.0,100980.0,0.00198054]
[1746726514133,1.72468248,100990.0,100980.0,0.00198054]
[1746726514333,1.89300914,100990.0,100980.0,0.00198054]
[1746726514539,1.72468248,100990.0,100980.0,0.05158054]
[1746726514730,0.2490097,100990.0,100980.0,0.05158054]
[1746726514942,0.5698097,100990.0,100980.0,0.09948054]
[1746726515148,1.4818097,100990.0,100980.0,0.09948054]
[1746726515336,1.5328097,100990.0,100980.0,0.09948054]
[1746726515733,1.5348097,100990.0,100980.0,0.09948054]
[1746726516343,1.5328097,100990.0,100980.0,0.09948054]
[1746726516537,1.5328097,100990.0,100980.0,0.15008054]
[1746726516739,1.74823636,100990.0,100980.0,0.15008054]
[1746726516936,1.74323636,100990.0,100980.0,0.15008054]
[1746726517245,2.05780914,100990.0,100980.0,0.15008054]
[1746726517539,2.43180914,100990.0,100980.0,0.10048054]
[1746726517745,2.44080914,100990.0,100980.0,0.10048054]
[1746726517937,2.12623636,100990.0,100980.0,0.05258054]
[1746726518144,2.44080914,100990.0,100980.0,0.00198054]
[1746726518843,0.1980293,100980.0,100970.0,0.00099031]
[1746726519040,1.7624554,100980.0,100970.0,1e-08]
[1746726519246,0.1980685,100960.0,100950.0,0.15197169]
[1746726519550,1.40256794,100960.0,100950.0,0.15197169]
[1746726519757,1.40256794,100960.0,100950.0,0.32029835]
[1746726519758,0.6080685,100960.0,100950.0,0.32029835]
[1746726520243,0.9688685,100960.0,100950.0,0.32029835]
[1746726520545,1.4710821,100960.0,100940.0,0.03361143]
[1746726520749,0.1981274,100930.0,100920.0,0.13927025]
[1746726520945,0.5589274,100930.0,100920.0,0.03807025]
[1746726521147,0.1981274,100930.0,100920.0,0.20639691]
[1746726521649,0.1981274,100930.0,100920.0,0.28439691]
[1746726521844,0.1981274,100930.0,100920.0,0.48254391]
[1746726522043,0.1981274,100930.0,100920.0,0.28439691]
[1746726522347,0.1991274,100930.0,100920.0,0.28439691]
[1746726522735,0.1991274,100930.0,100920.0,0.64519691]
[1746726523244,0.1991274,100930.0,100920.0,0.28439691]
[1746726523548,0.2001274,100930.0,100920.0,0.28439691]
[1746726523745,0.84470018,100930.0,100920.0,4e-08]
[1746726523945,0.84470018,100930.0,100900.0,0.40591841]
[1746726523946,0.04644236,100920.0,100900.0,0.40591841]
[1746726524150,1.01640896,100910.0,100900.0,0.39849504]
[1746726524445,1.52473562,100910.0,100900.0,0.39849504]
[1746726524750,1.57473562,100910.0,100900.0,0.39849504]
[1746726524950,1.56140896,100910.0,100900.0,0.5668217]
[1746726525143,1.1551666,100910.0,100900.0,0.5668217]
[1746726525452,1.1051666,100910.0,100900.0,1.0551617]
[1746726525655,1.1051666,100910.0,100900.0,0.67961771]
[1746726525837,1.4551666,100910.0,100900.0,0.58933105]
[1746726526043,1.4551666,100910.0,100900.0,0.22853105]
[1746726526243,1.4551666,100910.0,100900.0,0.15049105]
[1746726526448,1.4551666,100910.0,100900.0,0.22853105]
[1746726526753,1.8169666,100910.0,100900.0,0.22853105]
[1746726526945,0.5501666,100910.0,100900.0,0.22853105]
[1746726527346,0.76493562,100910.0,100900.0,0.15049105]
[1746726527549,1.22543562,100910.0,100900.0,0.15049105]
[1746726527747,2.13143562,100910.0,100900.0,0.10099105]
[1746726528141,2.18223562,100910.0,100900.0,0.10099105]
[1746726529149,0.1981863,100900.0,100890.0,0.00198231]
[1746726529347,1.22465532,100900.0,100890.0,0.00198231]
[1746726529741,0.1982256,100880.0,100870.0,0.00099129]
[1746726530052,1.13379462,100880.0,100870.0,0.00099129]
[1746726530244,1.18049462,100880.0,100870.0,0.00099129]
[1746726530445,1.06166796,100880.0,100870.0,0.00099129]
[1746726530845,1.0152256,100880.0,100870.0,0.00099129]
[1746726531044,1.06266796,100880.0,100870.0,0.00099129]
[1746726531648,1.0162256,100880.0,100870.0,0.16931795]
[1746726531857,0.5592256,100880.0,100870.0,0.22041795]
[1746726532046,0.9200256,100880.0,100870.0,0.05209129]
[1746726532251,0.5602256,100880.0,100870.0,0.05209129]
[1746726532452,0.5602256,100880.0,100870.0,0.41289129]
[1746726532655,0.5602256,100880.0,100870.0,0.77946315]
[1746726532841,0.5602256,100880.0,100870.0,0.58121795]
[1746726533044,0.5602256,100880.0,100870.0,0.05209129]
[1746726533647,0.60666796,100880.0,100870.0,0.05209129]
[1746726533948,1.06636796,100880.0,100870.0,0.05209129]
[1746726534153,0.70556796,100880.0,100870.0,0.05209129]
[1746726534347,1.06636796,100880.0,100870.0,0.05209129]
[1746726534549,0.70556796,100880.0,100870.0,0.05209129]
[1746726535546,1.23469462,100880.0,100870.0,0.05209129]
[1746726535851,1.0199256,100880.0,100870.0,0.05209129]
[1746726536150,0.6069256,100880.0,100870.0,0.22041795]
[1746726536346,0.6069256,100880.0,100870.0,0.61113649]
[1746726536551,0.002,100880.0,100870.0,1.03498315]
[1746726536741,0.002,100880.0,100870.0,1.28996845]
[1746726537054,0.3468463,100900.0,100890.0,0.1982059]
[1746726537354,0.6081982,100900.0,100890.0,0.93487093]
[1746726537651,0.1981863,100900.0,100890.0,1.66100405]
[1746726537856,0.1981863,100900.0,100890.0,1.49267739]
[1746726538246,0.1991863,100900.0,100890.0,0.92258503]
[1746726538548,0.2191863,100900.0,100890.0,0.11546503]
[1746726538753,0.2703863,100900.0,100890.0,0.11546503]
[1746726539052,0.5616863,100900.0,100890.0,0.11546503]
[1746726539248,0.5616863,100900.0,100890.0,0.20098503]
[1746726539448,0.5616863,100900.0,100890.0,0.73011169]
[1746726539449,0.4601863,100900.0,100890.0,0.73011169]
[1746726539846,0.5616863,100900.0,100890.0,0.20098503]
[1746726540041,0.5616863,100900.0,100890.0,0.25018503]
[1746726540351,0.5616863,100900.0,100890.0,0.16466503]
[1746726540555,0.4601863,100900.0,100890.0,0.44839093]
[1746726540958,0.5077863,100900.0,100890.0,0.44839093]
[1746726541157,0.5077863,100900.0,100890.0,0.80919093]
[1746726541554,0.4601863,100900.0,100890.0,1.06514365]
[1746726541856,0.002,100900.0,100890.0,1.37425565]
[1746726542053,0.2001863,100900.0,100890.0,1.39425565]
[1746726542460,0.2001863,100900.0,100890.0,1.56425565]
[1746726542753,0.2001863,100900.0,100890.0,1.57425565]
[1746726542958,0.002,100900.0,100890.0,1.57425565]
[1746726543163,0.3467816,100920.0,100910.0,0.1981666]
[1746726543362,0.1981666,100910.0,100900.0,0.91612522]
[1746726543562,0.1981666,100910.0,100900.0,1.03492522]
[1746726543862,0.1981666,100910.0,100900.0,1.14909425]
[1746726544154,0.1981666,100910.0,100900.0,0.82999025]
[1746726544361,0.1981666,100910.0,100900.0,0.91551025]
[1746726544862,0.1981666,100910.0,100900.0,0.92909425]
[1746726545155,0.1981666,100910.0,100900.0,1.49324175]
[1746726545360,0.1991666,100910.0,100900.0,1.49424175]
[1746726545552,0.1991666,100910.0,100900.0,1.30961775]
[1746726545752,0.1991666,100910.0,100900.0,1.34559285]
[1746726546357,0.1991666,100910.0,100900.0,0.91650735]
[1746726546552,0.2011666,100910.0,100900.0,0.63381775]
[1746726546756,0.42850896,100910.0,100900.0,0.10258503]
[1746726546947,0.65850896,100910.0,100900.0,0.01706503]
[1746726547147,1.32276168,100910.0,100900.0,0.01706503]
[1746726547555,0.96196168,100910.0,100900.0,0.01706503]
[1746726547756,0.70600896,100910.0,100900.0,0.01706503]
[1746726547956,1.06680896,100910.0,100900.0,0.01706503]
[1746726549259,0.70600896,100910.0,100900.0,0.21525133]
[1746726549559,0.4614,100910.0,100900.0,0.57605133]
[1746726549859,0.003,100910.0,100900.0,1.31110805]
[1746726550065,0.003,100910.0,100900.0,1.54280805]
[1746726551262,0.247691,100920.0,100910.0,0.3467623]
[1746726551462,0.247691,100920.0,100910.0,1.41351502]
[1746726551663,0.247691,100920.0,100910.0,1.52767205]
[1746726551863,0.247691,100920.0,100910.0,1.97767205]
[1746726552063,0.247691,100920.0,100910.0,1.84457675]
[1746726552260,0.247691,100920.0,100910.0,1.02401203]
[1746726552453,0.349291,100920.0,100910.0,0.65955163]
[1746726552657,0.352291,100920.0,100910.0,0.57403163]
[1746726552859,0.382291,100920.0,100910.0,0.46138503]
[1746726553064,0.62873336,100920.0,100910.0,0.65955163]
[1746726553262,0.535191,100920.0,100910.0,0.91650435]
[1746726553566,0.58163336,100920.0,100910.0,0.46238503]
[1746726553768,0.63273336,100920.0,100910.0,0.66055163]
[1746726554061,0.63273336,100920.0,100910.0,0.10158503]
[1746726554266,0.68033336,100920.0,100910.0,0.01606503]
[1746726554561,1.67708608,100920.0,100910.0,3e-08]
[1746726555363,2.33308608,100920.0,100910.0,3e-08]
[1746726555659,1.71633336,100920.0,100910.0,0.19816663]
[1746726555867,1.71633336,100920.0,100910.0,0.81491935]
[1746726556063,1.71633336,100920.0,100910.0,0.90043935]
[1746726556664,0.81033336,100920.0,100910.0,0.90043935]
[1746726556862,0.81033336,100920.0,100910.0,0.64448663]
[1746726557066,0.81033336,100920.0,100910.0,0.44632003]
[1746726557457,0.81033336,100920.0,100910.0,0.64448663]
[1746726557659,0.81033336,100920.0,100910.0,0.90067423]
[1746726557860,0.81033336,100920.0,100910.0,0.95157423]
[1746726558967,0.81033336,100920.0,100910.0,0.69562151]
[1746726559472,0.0575,100920.0,100910.0,0.95157423]
[1746726559768,0.0575,100920.0,100910.0,1.28087423]
[1746726559968,0.255647,100920.0,100910.0,1.28087423]
[1746726560164,0.79674208,100920.0,100910.0,0.00023491]
[1746726560362,0.59038936,100920.0,100910.0,0.00023491]
[1746726560764,0.81038936,100920.0,100910.0,0.00023491]
[1746726560960,0.81038936,100920.0,100910.0,0.19840151]
[1746726561161,0.81038936,100920.0,100910.0,0.28392151]
[1746726561362,0.81038936,100920.0,100910.0,0.69612151]
[1746726561571,0.81038936,100920.0,100910.0,0.95207423]
[1746726561970,0.81038936,100920.0,100910.0,0.74852151]
[1746726562467,1.01714208,100920.0,100910.0,0.00023491]
[1746726562672,1.73623408,100920.0,100910.0,0.00023491]
[1746726563270,2.64223408,100920.0,100910.0,0.00023491]
[1746726563663,2.39223408,100920.0,100910.0,0.00023491]
[1746726564772,2.55727092,100920.0,100910.0,0.00023491]
[1746726565073,2.45817892,100920.0,100910.0,0.00023491]
[1746726565367,2.2022262,100920.0,100910.0,0.00023491]
[1746726565571,2.2022262,100920.0,100910.0,0.19840151]
[1746726565873,1.4714262,100920.0,100910.0,0.19840151]
[1746726566071,1.4714262,100920.0,100910.0,0.24960151]
[1746726566470,1.4714262,100920.0,100910.0,0.05143491]
[1746726567571,1.4714262,100920.0,100910.0,0.24960151]
[1746726567765,1.4714262,100920.0,100910.0,0.74912151]
[1746726567965,1.48148284,100920.0,100910.0,0.74912151]
[1746726568164,1.48148284,100920.0,100910.0,0.40381185]
[1746726568665,1.48148284,100920.0,100910.0,1.02056457]
[1746726568666,1.28333584,100920.0,100910.0,1.02056457]
[1746726568864,1.43504048,100920.0,100910.0,1.02056457]
[1746726569772,0.52904048,100920.0,100910.0,1.02056457]
[1746726569972,0.47944048,100920.0,100910.0,1.02056457]
[1746726570171,0.47944048,100920.0,100910.0,0.76461185]
[1746726570371,0.47944048,100920.0,100910.0,1.02056457]
[1746726570773,0.304347,100920.0,100910.0,1.02056457]
[1746726571574,0.1062,100920.0,100910.0,1.02056457]
[1746726571871,0.007,100920.0,100910.0,1.50965657]
[1746726572372,0.205147,100920.0,100910.0,1.41056457]
[1746726572574,0.252047,100920.0,100910.0,1.41056457]
[1746726573372,0.304047,100920.0,100910.0,1.41056457]
[1746726573672,0.35048936,100920.0,100910.0,0.84461185]
[1746726573864,0.35048936,100920.0,100910.0,0.76461185]
[1746726574061,0.35048936,100920.0,100910.0,1.02056457]
[1746726574267,0.304047,100920.0,100910.0,1.02056457]
[1746726574469,0.205147,100920.0,100910.0,1.02056457]
[1746726574868,0.007,100920.0,100910.0,1.50965657]
[1746726575068,0.00947,100920.0,100910.0,1.65965657]
[1746726575276,0.07704006,100930.0,100920.0,0.198147]
[1746726575472,0.10005342,100940.0,100930.0,0.1981274]
[1746726575773,0.10005342,100940.0,100930.0,1.51126012]
[1746726575978,0.10005342,100940.0,100930.0,1.97285212]
[1746726576178,0.10005342,100940.0,100930.0,2.06033212]
[1746726576376,0.29816112,100940.0,100930.0,1.96126012]
[1746726576680,0.10005342,100940.0,100930.0,1.87378012]
[1746726576977,0.29816112,100940.0,100930.0,1.96126012]
[1746726577173,0.30616112,100940.0,100930.0,1.96226012]
[1746726577366,0.30616112,100940.0,100930.0,1.71349949]
[1746726577574,0.30616112,100940.0,100930.0,1.96945221]
[1746726577772,0.10605342,100940.0,100930.0,1.96945221]
[1746726578173,0.006,100940.0,100930.0,1.96945221]
[1746726578478,0.44976481,100950.0,100940.0,0.1981077]
[1746726578675,0.49620717,100950.0,100940.0,1.05326042]
[1746726578874,0.44668147,100950.0,100940.0,1.05326042]
[1746726579282,0.05208691,100950.0,100940.0,1.05326042]
[1746726579480,0.25017501,100950.0,100940.0,1.05326042]
[1746726580373,0.34643046,100950.0,100940.0,0.18588]
[1746726580573,0.35043046,100950.0,100940.0,0.30164442]
[1746726580774,0.40133046,100950.0,100940.0,0.30164442]
[1746726581370,0.40133046,100950.0,100940.0,0.75684442]
[1746726581576,0.40133046,100950.0,100940.0,0.65199714]
[1746726581777,0.40133046,100950.0,100940.0,1.01279714]
[1746726582075,0.40133046,100950.0,100940.0,0.99774042]
[1746726582678,0.0546,100950.0,100940.0,1.01314211]
[1746726582980,0.2526881,100950.0,100940.0,1.01314211]
[1746726583377,0.2526881,100950.0,100940.0,0.92566211]
[1746726583574,0.2526881,100950.0,100940.0,1.01314211]
[1746726583774,0.0546,100950.0,100940.0,1.01314211]
[1746726583975,0.2030881,100950.0,100940.0,1.05314211]
[1746726584282,0.2547881,100950.0,100940.0,1.05314211]
[1746726586081,0.2547881,100950.0,100940.0,0.96566211]
[1746726586282,0.0567,100950.0,100940.0,1.26314211]
[1746726586676,0.2547881,100950.0,100940.0,1.26314211]
[1746726587483,0.3029881,100950.0,100940.0,1.26314211]
[1746726588371,0.30123046,100950.0,100940.0,1.26314211]
[1746726588576,0.30123046,100950.0,100940.0,0.72160169]
[1746726588577,0.35163046,100950.0,100940.0,0.72160169]
[1746726588880,0.35163046,100950.0,100940.0,1.00718939]
[1746726589785,0.35163046,100950.0,100940.0,0.78718939]
[1746726589983,0.71243046,100950.0,100940.0,0.04640169]
[1746726590175,0.198147,100920.0,100910.0,0.24719188]
[1746726590481,0.24458936,100920.0,100910.0,0.53095388]
[1746726590687,0.0514,100920.0,100910.0,1.15494146]
[1746726590883,0.249547,100920.0,100910.0,1.36494146]
[1746726591285,0.251547,100920.0,100910.0,1.37494146]
[1746726591487,0.002,100920.0,100910.0,1.37494146]
[1746726591674,0.200147,100920.0,100910.0,1.37494146]
[1746726591878,0.002,100920.0,100910.0,1.47403346]
[1746726592079,0.3485788,100940.0,100930.0,0.1981274]
[1746726592284,0.34549066,100940.0,100930.0,0.90032012]
[1746726592591,0.34549066,100940.0,100930.0,1.04802012]
[1746726592881,0.29595006,100940.0,100930.0,1.40882012]
[1746726593282,0.1981077,100940.0,100930.0,1.39782012]
[1746726593585,0.34714152,100950.0,100940.0,0.1981077]
[1746726593787,0.39358388,100950.0,100940.0,1.27406042]
[1746726595179,0.39458388,100950.0,100940.0,1.27406042]
[1746726595380,0.44148388,100950.0,100940.0,1.27406042]
[1746726595689,0.44148388,100950.0,100940.0,1.0181077]
[1746726595987,0.44448388,100950.0,100940.0,1.0191077]
[1746726597084,0.34443046,100950.0,100940.0,1.0191077]
[1746726597788,0.34443046,100950.0,100940.0,0.7991077]
[1746726598190,0.39113046,100950.0,100940.0,0.7445477]
[1746726598487,0.39113046,100950.0,100940.0,0.6591077]
[1746726598993,0.39113046,100950.0,100940.0,0.7445477]
[1746726599590,0.39113046,100950.0,100940.0,0.6958477]
[1746726599788,0.39113046,100950.0,100940.0,0.3618]
[1746726600192,1.00788318,100950.0,100940.0,0.08644]
[1746726600983,0.39113046,100950.0,100940.0,0.2845477]
[1746726601182,0.39113046,100950.0,100940.0,0.6453477]
[1746726601378,0.39113046,100950.0,100940.0,0.2845477]
[1746726601788,0.39113046,100950.0,100940.0,0.6453477]
[1746726601984,0.39113046,100950.0,100940.0,0.7352477]
[1746726602179,0.1466,100950.0,100940.0,1.00662529]
[1746726602389,0.09944236,100950.0,100940.0,1.39442529]
[1746726602592,0.053,100950.0,100940.0,1.39442529]
[1746726602790,0.005,100950.0,100940.0,1.87442529]
[1746726603291,0.2030881,100950.0,100940.0,1.42442529]
[1746726603495,0.29383046,100950.0,100940.0,1.05303257]
[1746726603792,0.38473046,100950.0,100940.0,1.13847257]
[1746726604091,0.38473046,100950.0,100940.0,1.39442529]
[1746726604277,0.38473046,100950.0,100940.0,1.05303257]
[1746726604483,0.38473046,100950.0,100940.0,0.66077257]
[1746726604986,0.33853046,100950.0,100940.0,0.91672529]
[1746726605186,0.2920881,100950.0,100940.0,1.05782529]
[1746726605389,0.33853046,100950.0,100940.0,1.05782529]
[1746726606389,0.09574236,100950.0,100940.0,1.05782529]
[1746726606585,0.2473881,100950.0,100940.0,1.05782529]
[1746726606787,1.11058318,100950.0,100940.0,0.01642487]
[1746726606991,1.03488318,100950.0,100940.0,0.01642487]
[1746726607185,1.68493046,100950.0,100940.0,0.01642487]
[1746726607383,1.33413046,100950.0,100940.0,0.21453257]
[1746726607592,1.33413046,100950.0,100940.0,0.01642487]
[1746726607981,1.33413046,100950.0,100940.0,0.21453257]
[1746726608186,1.33413046,100950.0,100940.0,0.01642487]
[1746726608492,1.49915062,100950.0,100940.0,0.01642487]
[1746726608688,1.36270826,100950.0,100940.0,0.47048529]
[1746726608881,1.12032016,100950.0,100940.0,1.27378529]
[1746726609194,1.31840826,100950.0,100940.0,1.27378529]
[1746726609393,1.31840826,100950.0,100940.0,1.25378529]
[1746726609594,0.45780826,100950.0,100940.0,1.25378529]
[1746726611494,0.41240826,100950.0,100940.0,1.25378529]
[1746726612194,0.36810826,100950.0,100940.0,0.92378529]
[1746726612387,0.30333186,100950.0,100940.0,0.92378529]
[1746726612582,0.30333186,100950.0,100940.0,1.11378529]
[1746726612789,0.10524376,100950.0,100940.0,1.28836042]
[1746726612989,0.10524376,100950.0,100940.0,1.45836042]
[1746726613586,0.10524376,100950.0,100940.0,1.55742442]
[1746726613893,0.30333186,100950.0,100940.0,1.3014717]
[1746726614095,0.34843186,100950.0,100940.0,1.26836042]
[1746726614290,0.39483186,100950.0,100940.0,1.0124077]
[1746726614491,0.48687422,100950.0,100940.0,1.28354731]
[1746726614797,0.48687422,100950.0,100940.0,1.73354731]
[1746726614992,0.48687422,100950.0,100940.0,1.28354731]
[1746726615201,0.48687422,100950.0,100940.0,1.26836042]
[1746726615997,0.38663046,100950.0,100940.0,1.26836042]
[1746726616895,0.34103046,100950.0,100940.0,1.26836042]
[1746726617994,0.09654236,100950.0,100940.0,1.26836042]
[1746726618399,0.2030881,100950.0,100940.0,1.26836042]
[1746726618699,0.2030881,100950.0,100940.0,1.46836042]
[1746726620599,0.005,100950.0,100940.0,1.56742442]
[1746726621200,0.34661596,100960.0,100950.0,0.1980881]
[1746726621392,0.34661596,100960.0,100950.0,1.08614082]
[1746726621793,0.10224376,100960.0,100950.0,1.26995018]
[1746726622098,0.32211975,100970.0,100960.0,0.1980685]
[1746726622299,0.37021975,100970.0,100960.0,1.88312154]
[1746726622497,0.37021975,100970.0,100960.0,1.98216554]
[1746726622890,0.17217085,100970.0,100960.0,1.44216554]
[1746726623201,0.37021975,100970.0,100960.0,1.53216554]
[1746726623395,0.37021975,100970.0,100960.0,1.98216554]
[1746726623695,0.17217085,100970.0,100960.0,2.0673053]
[1746726623900,0.17517085,100970.0,100960.0,2.0673053]
[1746726624109,0.12707085,100970.0,100960.0,2.0673053]
[1746726624404,0.003,100970.0,100960.0,2.0673053]
[1746726626801,0.003,100970.0,100960.0,2.4832053]
[1746726627003,0.4393676,100980.0,100970.0,0.1980489]
[1746726627195,0.48580996,100980.0,100970.0,1.3130417]
[1746726627894,0.48580996,100980.0,100970.0,1.1475089]
[1746726628090,0.4875676,100980.0,100970.0,0.9651489]
[1746726628295,0.53700996,100980.0,100970.0,0.6488089]
[1746726628494,0.48849926,100980.0,100970.0,0.6488089]
[1746726628695,0.48849926,100980.0,100970.0,0.9977017]
[1746726629709,0.48849926,100980.0,100970.0,1.1777017]
[1746726630007,0.62649926,100980.0,100970.0,1.1777017]
[1746726630506,0.62649926,100980.0,100970.0,1.0877417]
[1746726630707,0.62849926,100980.0,100970.0,1.1777017]
[1746726631309,0.62849926,100980.0,100970.0,1.0877417]
[1746726631610,0.79849926,100980.0,100970.0,0.6956089]
[1746726631909,0.79849926,100980.0,100970.0,0.8856089]
[1746726632109,0.79849926,100980.0,100970.0,1.1856017]
[1746726633012,0.3598,100980.0,100970.0,1.1856017]
[1746726633205,0.13227,100980.0,100970.0,1.7215017]
[1746726633401,0.00747,100980.0,100970.0,1.9315017]
[1746726633809,0.00747,100980.0,100970.0,2.3815017]
[1746726634710,0.00747,100980.0,100970.0,2.4805377]
[1746726635311,0.00747,100980.0,100970.0,2.48787599]
[1746726635509,0.00747,100980.0,100970.0,2.07197599]
[1746726636304,0.002,100990.0,100980.0,0.1980293]
[1746726636500,0.002,100990.0,100980.0,1.5011221]
[1746726636804,0.1477,101000.0,100990.0,0.1980097]
[1746726637007,0.19414236,101000.0,100990.0,1.4465025]
[1746726637605,0.19414236,101000.0,100990.0,1.45372853]
[1746726637804,0.39213236,101000.0,100990.0,1.45372853]
[1746726638204,0.20314236,101000.0,100990.0,1.45572853]
[1746726639305,0.11,101000.0,100990.0,2.00474453]
[1746726639511,0.5680927,101020.0,101010.0,0.1979704]
[1746726639705,0.8180927,101020.0,101010.0,1.2342232]
[1746726639903,0.74046421,101020.0,101010.0,1.2829232]
[1746726640111,0.74046421,101020.0,101010.0,0.6487304]
[1746726640412,0.74046421,101020.0,101010.0,0.2879304]
[1746726640608,0.78546421,101020.0,101010.0,0.2879304]
[1746726640813,0.79846421,101020.0,101010.0,0.2899304]
[1746726642111,0.79846421,101020.0,101010.0,0.6507304]
[1746726643416,1.05395701,101020.0,101010.0,0.002]
[1746726643719,1.05395701,101020.0,101010.0,0.2899304]
[1746726644015,1.15926421,101020.0,101010.0,0.2899304]
[1746726644216,0.79846421,101020.0,101010.0,0.2899304]
[1746726644616,0.79846421,101020.0,101010.0,0.6482904]
[1746726644920,0.79846421,101020.0,101010.0,0.81854176]
[1746726645913,0.79846421,101020.0,101010.0,0.91254176]
[1746726646514,0.79846421,101020.0,101010.0,0.2874904]
[1746726646916,0.79846421,101020.0,101010.0,0.50604176]
[1746726647214,0.79846421,101020.0,101010.0,0.86684176]
[1746726647719,0.79846421,101020.0,101010.0,1.18234176]
[1746726648023,0.79846421,101020.0,101010.0,0.82154176]
[1746726648215,0.79846421,101020.0,101010.0,1.18234176]
[1746726649121,0.79846421,101020.0,101010.0,1.0120904]
[1746726649514,0.69948261,101020.0,101010.0,1.0120904]
[1746726649718,0.64850776,101020.0,101010.0,1.18234176]
[1746726649918,0.64850776,101020.0,101010.0,1.02720842]
[1746726650621,0.64850776,101020.0,101010.0,0.66640842]
[1746726650818,0.64850776,101020.0,101010.0,1.02720842]
[1746726651207,0.39850776,101020.0,101010.0,1.02720842]
[1746726651622,0.39850776,101020.0,101010.0,0.66640842]
[1746726652311,0.39850776,101020.0,101010.0,1.02720842]
[1746726653919,0.20054236,101020.0,101010.0,1.19745978]
[1746726654123,0.39849316,101020.0,101010.0,1.19745978]
[1746726654319,0.06,101020.0,101010.0,1.19745978]
[1746726654517,0.2579508,101020.0,101010.0,1.19745978]
[1746726654825,0.06,101020.0,101010.0,1.19745978]
[1746726655124,0.2579508,101020.0,101010.0,1.19745978]
[1746726655719,0.055,101020.0,101010.0,1.19645978]
[1746726656026,0.2529508,101020.0,101010.0,1.19645978]
[1746726656523,0.2499508,101020.0,101010.0,1.19581448]
[1746726656721,0.2499508,101020.0,101010.0,1.18034176]
[1746726656922,0.2499508,101020.0,101010.0,1.59624176]
[1746726657224,0.052,101020.0,101010.0,1.61171442]
[1746726657416,0.052,101020.0,101010.0,1.19581442]
[1746726657613,0.052,101020.0,101010.0,1.64581442]
[1746726658824,0.052,101020.0,101010.0,1.63034176]
[1746726659025,0.2499508,101020.0,101010.0,1.63034176]
[1746726659225,0.2499508,101020.0,101010.0,1.64581435]
[1746726659622,0.2499508,101020.0,101010.0,1.63034176]
[1746726660219,0.2499508,101020.0,101010.0,1.19581436]
[1746726660418,0.2965508,101020.0,101010.0,1.18034176]
[1746726660620,0.2965508,101020.0,101010.0,1.63034176]
[1746726661518,0.0986,101020.0,101010.0,1.64581496]
[1746726661726,0.2965508,101020.0,101010.0,1.64581496]